[Event "Fall GM-C Norm Invitational 2022"]
[Site "Charlotte"]
[Date "2022.11.19"]
[Round "3"]
[White "Wang, Tianqi"]
[Black "Escobar Forero, Alder"]
[Result "1-0"]
[ECO "B22"]
[WhiteElo "2428"]
[BlackElo "2510"]
[Annotator "TA"]
[PlyCount "97"]
[EventDate "2022.11.18"]
[EventType "tourn"]
[EventCountry "USA"]
[SourceTitle "playchess.com"]
[Source "ChessBase"]
[SourceQuality "1"]
[TimeControl "5400+30"]

{[%evp 9,97,8,10,6,25,26,22,3,19,16,31,0,0,10,16,-21,33,8,0,6,18,12,91,61,52,45,96,67,102,74,85,69,70,73,189,100,157,129,113,102,164,177,225,198,239,234,221,161,377,338,359,350,342,331,377,372,344,364,416,404,419,410,384,287,517,511,787,787,879,878,937,918,785,639,5013,1960,1843,1597,2070,1858,29971,29974,29974,29975,29975,29970,5231,952,2658,2155]} 1. e4 {[%emt 0:00:53]} c5 {[%emt 0:00:15]} 2. c3 {[%emt 0:00:11]} Nf6 {[%emt 0:03:55]} 3. e5 {[%emt 0:00:21]} Nd5 {[%emt 0:00:01]} 4. Nf3 {[%emt 0:00:27]} d6 {[%emt 0:01:30]} 5. exd6 {[%emt 0:02:49]} Qxd6 {[%emt 0:11:07]} (5... e6 {with more complications.} 6. d4 cxd4 7. c4 Nf6) 6. d4 {[%emt 0:00:22] B22: Sicilian: 2 c3.} e6 {[%emt 0:01:43]} 7. dxc5 {[%emt 0:02:05]} Qxc5 {[%emt 0:00:07]} 8. Bd3 {[%emt 0:00:06] The position is equal.} Be7 {[%emt 0:01:41]} 9. O-O {[%emt 0:00:29] [#]} Nd7 $146 {[%emt 0:00:44]} ({Predecessor:} 9... O-O 10. a3 Qc7 11. Nbd2 Nc6 12. Re1 b6 13. Nc4 Bb7 14. Nfe5 Nxe5 15. Nxe5 Bd6 {1-0 (26) Pcola,P (2275)-Kudla,M Slovakia 1993}) 10. a3 {[%emt 0:00:44]} (10. c4 $5 {[%cal Rc4d5]} Nb4 11. Be2 $14) 10... Qc7 {[%emt 0:00:20]} 11. Re1 $1 {[%emt 0:00:38]} O-O {[%emt 0:02:25]} 12. Qc2 {[%emt 0:00:41]} (12. c4 $5 {[%cal Rc4d5]} Nf4 13. Nc3 $11) 12... g6 {[%emt 0:09:41]} ({Black should play} 12... h6 $11) 13. Bh6 {[%emt 0:00:31]} Rd8 {[%emt 0:00:21]} 14. Nbd2 {[%emt 0:02:01]} Nc5 {[%emt 0:02:44]} 15. Bf1 {[%emt 0:03:18]} Bd7 {[%emt 0:12:07]} (15... b6 $11 {keeps the balance.}) 16. c4 {[%emt 0:12:44]} (16. b4 {keeps more tension.} Na4 17. c4 b5 18. Rac1) 16... Nf6 {[%emt 0:00:30]} 17. Bg5 $36 {[%emt 0:10:05][%mdl 2048] White has good play.} (17. h3 {feels hotter.} Ba4 18. b3 Bc6 19. b4) 17... Be8 {[%emt 0:04:52]} (17... Bc6 $14) 18. b4 $16 {[%emt 0:01:35]} Na4 {[%emt 0:08:50]} 19. Rac1 {[%emt 0:01:18]} a5 {[%emt 0:03:29]} 20. c5 {[%emt 0:01:15] Against h6. Threatens to win with b5.} axb4 {[%emt 0:01:17]} 21. axb4 {[%emt 0:00:05]} b5 {[%emt 0:07:11] Against Qc4} (21... Nd5 $16) 22. Bh4 {[%emt 0:19:45]} (22. Ne4 $18 Nxe4 23. Bxe7 (23. Qxe4 Bxg5 24. Nxg5 h6 $16) 23... Qxe7 24. Qxe4 (24. Rxe4 Bc6 $16)) 22... Rd5 {[%emt 0:05:28]} (22... Bc6 $142) 23. Bg3 {[%emt 0:02:36][%cal Bh4g3,Bg3e5,Be5a1][%mdl 32]} Qd8 {[%emt 0:00:05]} 24. Nb3 {[%emt 0:00:26] White is more active.} Rc8 {[%emt 0:01:10]} (24... Bf8 $16) 25. Be5 $18 {[%emt 0:02:43]} Ng4 {[%emt 0:00:56]} (25... Nd7 $142 26. Ba1 (26. Bxb5 $2 Nxe5 27. Rxe5 Bxb5 $19) 26... Bf6 27. Bxb5 Bxa1) 26. Ba1 {[%emt 0:00:43]} Bf6 {[%emt 0:00:19] [#]} 27. Nbd4 $1 {[%emt 0:03:21][%mdl 512]} Bxd4 {[%emt 0:11:42]} 28. Nxd4 {[%emt 0:00:16]} e5 $2 {[%emt 0:01:59]} (28... Rxd4 $2 29. Bxd4 Qxd4 30. Re4) (28... Nxh2 29. Kxh2 (29. Bxb5 Bxb5 30. Nxb5 Qh4 $16) 29... Rxd4) 29. Nb3 {[%emt 0:10:47]} (29. Bxb5 Bxb5 30. Nxb5 Rd2 $18) 29... f6 {[%emt 0:01:21]} (29... Qh4 $2 30. h3 Nf6 31. Bxe5) 30. Qe4 {[%emt 0:00:53]} Nh6 {[%emt 0:00:20]} 31. f4 {[%emt 0:01:04][%cal Rf4e5]} Nf7 {[%emt 0:00:43]} 32. fxe5 {[%emt 0:00:16]} fxe5 {[%emt 0:00:59]} 33. Be2 {[%emt 0:00:12]} Bc6 {[%emt 0:01:37][%cal Od5c5]} 34. Qe3 {[%emt 0:00:44]} Qh4 {[%emt 0:00:16]} 35. Na5 {[%emt 0:01:56] And now Nxc6 would win.} Ba8 {[%emt 0:03:42]} (35... Qxb4 $2 36. Nxc6 Rxc6 37. Bf3 Rcxc5 38. Bxd5 Rxd5 39. Rc8+ Kg7 40. Rc7 $18) 36. Rb1 {[%emt 0:01:09] Strongly threatening Bf3.} ({Not} 36. Bxb5 Qxb4 37. Ba6 Rcxc5 $16) 36... Rb8 $2 {[%emt 0:01:09]} (36... Nxc5 {was worth a try.} 37. bxc5 Rdxc5) 37. Bf3 {[%emt 0:03:12]} Rd7 {[%emt 0:01:06]} (37... Re8 $142 38. Bxd5 Bxd5) 38. c6 {[%emt 0:02:06]} Re7 {[%emt 0:00:05]} 39. Bd5 {[%emt 0:00:12] aiming for Bxf7+.} Nb6 {[%emt 0:00:37]} 40. Bxf7+ {[%emt 0:01:05]} (40. Bxe5 $2 {is the wrong capture.} Nxd5 41. Qg3 Qxg3 42. Bxg3 Rxe1+ 43. Rxe1 Rc8 $19) 40... Kxf7 {[%emt 0:00:39]} 41. Rf1+ {[%emt 0:01:57]} Ke8 {[%emt 0:00:29]} 42. Qf3 {[%emt 0:01:00] Inhibits Nd5.} (42. Bxe5 $142 Rd8 {[#]} 43. Qf3 $1) 42... Qf4 {[%emt 0:01:03]} 43. Qe2 {[%emt 0:00:31]} Qg5 {[%emt 0:00:30]} 44. Qxb5 {[%emt 0:00:17] c7+ would kill now.} Kd8 {[%emt 0:00:35] Prevents c7+.} 45. Rf8+ {[%emt 0:00:49]} Kc7 46. Rxb8 {[%emt 0:00:41]} Qe3+ {[%emt 0:00:48]} 47. Kh1 {[%emt 0:00:07]} Kxb8 {[%emt 0:00:01]} 48. Qc5 {[%emt 0:00:07]} (48. Nc4 $142 Bxc6 49. Qxc6 Nxc4 50. Qxc4) 48... Qd3 {[%emt 0:01:29]} 49. Qxb6+ {[%emt 0:00:42] Weighted Error Value: White=0.20 (precise) /Black=0.54} 1-0

[Event "Fall GM-C Norm Invitational 2022"]
[Site "Charlotte"]
[Date "2022.11.19"]
[Round "3"]
[White "Ippolito, Dean"]
[Black "Sethuraman, Sandeep"]
[Result "1-0"]
[ECO "E04"]
[WhiteElo "2368"]
[BlackElo "2371"]
[Annotator "TA"]
[PlyCount "80"]
[EventDate "2022.11.18"]
[EventType "tourn"]
[EventCountry "USA"]
[SourceTitle "playchess.com"]
[Source "ChessBase"]
[SourceQuality "1"]
[TimeControl "5400+30"]

{[%evp 11,80,19,25,23,11,13,12,14,14,4,40,33,47,43,41,36,35,35,29,41,29,32,88,88,93,82,89,89,89,89,89,89,89,64,64,62,69,50,50,49,49,49,151,140,377,377,377,377,377,372,357,357,358,287,944,932,918,879,889,857,29981,29982,29982,29983,29983,29984,29984,29985,29988,29989,29989]} 1. d4 {[%emt 0:00:02]} Nf6 {[%emt 0:00:04]} 2. c4 {[%emt 0:00:06]} e6 {[%emt 0:00:04]} 3. g3 {[%emt 0:00:04]} d5 {[%emt 0:00:04]} 4. Bg2 {[%emt 0:00:45]} dxc4 {[%emt 0:00:27]} 5. Nf3 {[%emt 0:00:06]} a6 {[%emt 0:00:04]} 6. O-O {[%emt 0:00:23]} Nc6 {[%emt 0:00:09]} 7. Nbd2 {[%emt 0:00:06] E04: Open Catalan: 5 Nf3.} Nxd4 {[%emt 0:13:57]} (7... b5 {feels hotter.} 8. Ne5 Nxe5 9. Bxa8 Qxd4 10. Ne4 Qa7) 8. Nxc4 {[%emt 0:00:13]} Nxf3+ {[%emt 0:04:16]} 9. Bxf3 {[%emt 0:00:04] The position is equal.} Qxd1 {[%emt 0:03:36]} 10. Rxd1 {[%emt 0:00:05]} Nd5 {[%emt 0:00:12] Inhibits Bf4.} 11. e4 {[%emt 0:01:10]} Nb6 {[%emt 0:00:45]} 12. Nxb6 {[%emt 0:00:16]} cxb6 {[%emt 0:00:05]} 13. e5 {[%emt 0:00:36]} Rb8 {[%emt 0:08:54]} 14. Be3 {[%emt 0:09:38]} Bc5 {[%emt 0:00:39]} 15. Rac1 {[%emt 0:07:01]} Bxe3 {[%emt 0:09:07]} 16. fxe3 {[%emt 0:00:12]} O-O {[%emt 0:10:01]} (16... Bd7 $14) 17. Rc7 $16 {[%emt 0:02:00][%mdl 1024] White has strong compensation.} b5 {[%emt 0:01:04] [#]} 18. b4 $146 {[%emt 0:01:48]} ({Predecessor:} 18. Re7 b4 19. Rc1 a5 20. Rcc7 Ra8 21. h4 a4 22. Rc4 b3 23. axb3 axb3 24. Rc3 {½-½ (41) Fodor,B (2120)-Chen,J (2263) Budapest 2021}) 18... g6 {[%emt 0:03:44]} 19. g4 {[%emt 0:09:20]} Re8 {[%emt 0:06:55]} 20. Kf2 {[%emt 0:05:04]} Kf8 {[%emt 0:00:54] [#]} 21. Rdc1 $1 {[%emt 0:00:29] White is much more active. The black rooks are badly placed.} Rd8 {[%emt 0:02:10]} 22. Ke2 {[%emt 0:02:52]} Ke8 {[%emt 0:11:26]} 23. g5 {[%emt 0:18:15]} Ra8 $1 {[%emt 0:02:11]} 24. a3 {[%emt 0:04:52][%cal Oe2e1]} ({But not} 24. Bxb7 Bxb7 25. Rxb7 Rac8 $11) 24... a5 $1 {[%emt 0:02:37]} 25. R1c2 $36 {[%emt 0:08:23][%mdl 2048] White fights for an advantage.} axb4 {[%emt 0:04:11]} 26. axb4 {[%emt 0:00:04]} Bd7 {[%emt 0:01:10]} ({Black should try} 26... Kf8 $14) 27. Bxb7 {[%emt 0:00:18]} ({Don't play} 27. Rxb7 $6 Rab8 $16) 27... Ra7 {[%emt 0:05:54] [#] A mistake that costs the game.} (27... Ra4 $16) 28. Rd2 $1 $18 {[%emt 0:00:41]} Ke7 {[%emt 0:02:45]} 29. h3 {[%emt 0:02:17]} Ke8 {[%emt 0:00:05]} 30. Rd6 {[%emt 0:01:32]} Ra2+ {[%emt 0:03:12]} 31. Kf3 {[%emt 0:03:23]} Ra7 {[%emt 0:02:13]} 32. Ke4 {[%emt 0:01:31] Hoping for Kd4.} Ke7 $2 {[%emt 0:02:54]} (32... Ra4 33. Rdxd7 Rxd7) 33. Kd4 {[%emt 0:02:25]} Ke8 {[%emt 0:00:36] [#]} 34. Rcxd7 $1 {[%emt 0:06:59][%mdl 512]} Rxd7 {[%emt 0:00:27][%mdl 4096] Endgame KRR-KRB} 35. Bc6 $1 {[%emt 0:00:05][%csl LRb5,LRd7][%mdl 64] Pin, Double Attack} Kd8 {[%emt 0:00:37]} 36. Rxd7+ {[%emt 0:01:11] White mates.} Rxd7+ {[%emt 0:00:06]} 37. Bxd7 {[%emt 0:00:04]} Kxd7 {[%emt 0:00:05]} 38. Kc5 {[%emt 0:00:03]} Kc7 {[%emt 0:00:03]} 39. Kxb5 {[%emt 0:00:05]} Kb7 {[%emt 0:00:03]} 40. Kc5 {[%emt 0:00:13]} Kc7 {[%emt 0:00:01] Weighted Error Value: White=0.05 (flawless) /Black=0.32} 1-0

[Event "Fall GM-C Norm Invitational 2022"]
[Site "Charlotte"]
[Date "2022.11.19"]
[Round "3"]
[White "Gedajlovic, Max"]
[Black "Slade, Theodore"]
[Result "1-0"]
[ECO "D37"]
[WhiteElo "2317"]
[BlackElo "2028"]
[Annotator "TA"]
[PlyCount "65"]
[EventDate "2022.11.18"]
[EventType "tourn"]
[EventCountry "USA"]
[SourceTitle "playchess.com"]
[Source "ChessBase"]
[SourceQuality "1"]
[TimeControl "5400+30"]

{[%evp 18,65,70,86,78,101,94,77,70,37,79,69,66,64,75,71,112,112,102,93,102,0,106,108,110,41,41,50,96,97,96,96,103,106,93,102,199,199,258,253,261,262,255,254,241,177,849,841,1025,1018]} 1. d4 {[%emt 0:02:13]} d5 {[%emt 0:00:10]} 2. c4 {[%emt 0:00:36]} e6 {[%emt 0:00:07]} 3. Nf3 {[%emt 0:00:07]} Nf6 {[%emt 0:00:15]} 4. Nc3 {[%emt 0:00:09]} Be7 {[%emt 0:00:07]} 5. Bf4 {[%emt 0:00:07]} O-O {[%emt 0:00:08]} 6. a3 {[%emt 0:00:06]} c5 {[%emt 0:02:06]} 7. dxc5 {[%emt 0:00:43]} Bxc5 {[%emt 0:01:05]} 8. e3 {[%emt 0:00:09]} Nc6 {[%emt 0:01:38]} 9. Qc2 {[%emt 0:00:24]} dxc4 {[%emt 0:06:10]} 10. Bxc4 {[%emt 0:02:10][%cal Bf1c4,Bc4a2,Ba2b1][%mdl 32]} a6 {[%emt 0:13:13] D37: Queen's Gambit Declined: 5 Bf4.} 11. Rd1 {[%emt 0:05:06] Prevents b5.} Bd7 {[%emt 0:06:38]} 12. O-O {[%emt 0:05:51] [#]} Rc8 $146 {[%emt 0:13:21] White is better.} ({Predecessor:} 12... h6 13. Ba2 Re8 14. Bb1 e5 15. Bg3 g6 16. Nd5 Be7 17. Nxe5 Nxe5 18. Bxe5 Nxd5 19. Rxd5 {½-½ (54) Michalicka,M (2205)-Koval,M (2017) Tatranske Zruby 2020}) 13. Bg5 {[%emt 0:17:21] White is much more active.} Qc7 {[%emt 0:07:16]} 14. Ba2 {[%emt 0:03:45]} Be7 {[%emt 0:06:38]} 15. Bb1 {[%emt 0:04:14] Threatens to win with Bxf6.} g6 {[%emt 0:00:16]} 16. Qa4 {[%emt 0:09:14] Hoping for Qh4.} Rfd8 {[%emt 0:08:26]} 17. Qh4 {[%emt 0:01:35]} Kg7 {[%emt 0:00:59]} 18. Bh6+ {[%emt 0:08:26]} Kg8 {[%emt 0:00:45]} 19. Bg5 {[%emt 0:00:05]} Kg7 {[%emt 0:00:34]} 20. Ne4 {[%emt 0:03:25]} Nxe4 {[%emt 0:03:14] [#]} 21. Bxe7 {[%emt 0:02:05]} (21. Qxe4 f6 22. Bh4 e5 $11) (21. Bxe4 $6 Bxg5 22. Nxg5 h6 $11) (21. Qh6+ $1 $16 Kg8 22. Bxe4) 21... Nxe7 $14 {[%emt 0:00:15]} 22. Qxe7 {[%emt 0:00:44] Chess con chili.} ({Of course not} 22. Bxe4 f6 $11) 22... Nf6 {[%emt 0:03:20]} (22... Bb5 $14 {should be considered.} 23. Qxc7 Rxc7 24. Bxe4 (24. Rxd8 Bxf1 25. Bxe4 Rc1 $11) 24... Bxf1 25. Rxf1 (25. Rxd8 Rc1 $11) 25... f5) 23. Ng5 $36 {[%emt 0:03:39][%mdl 2048] White is on the roll.} Rf8 {[%emt 0:00:09] [#] And now ...Nd5 would win.} 24. Nxh7 $1 {[%emt 0:03:51]} Kxh7 {[%emt 0:12:10]} (24... Ng4 25. g3) 25. Qxf6 {[%emt 0:00:08] Rd4 would kill now.} Qd8 {[%emt 0:00:41]} 26. Qf3 {[%emt 0:02:28]} Rc7 {[%emt 0:01:30]} (26... Qc7 $16) 27. Qh5+ $18 {[%emt 0:01:13]} Kg7 {[%emt 0:01:28] [#]} (27... Kg8 $142 28. Bxg6 fxg6 29. Qxg6+ Kh8) 28. Qe5+ $1 {[%emt 0:00:06]} Kg8 {[%emt 0:01:59]} 29. h4 {[%emt 0:00:43][%cal Bh2h4,Bh4h5][%mdl 32]} Qc8 {[%emt 0:01:38]} 30. h5 {[%emt 0:05:25]} Rc5 {[%emt 0:01:36]} 31. Qg3 {[%emt 0:00:53]} g5 {[%emt 0:02:41]} (31... Qc7) 32. b4 {[%emt 0:00:54]} Rb5 {[%emt 0:01:12]} 33. a4 {[%emt 0:00:15] Weighted Error Value: White=0.15 (very precise) /Black=0.15 (very precise)} 1-0

[Event "Fall GM-C Norm Invitational 2022"]
[Site "Charlotte"]
[Date "2022.11.19"]
[Round "4"]
[White "Macieja, Bartlomiej"]
[Black "Wang, Tianqi"]
[Result "1/2-1/2"]
[ECO "D37"]
[WhiteElo "2514"]
[BlackElo "2428"]
[Annotator "TA"]
[PlyCount "54"]
[EventDate "2022.11.18"]
[EventType "tourn"]
[EventCountry "USA"]
[SourceTitle "playchess.com"]
[Source "ChessBase"]
[SourceQuality "1"]
[TimeControl "5400+30"]

{[%evp 12,54,14,20,16,13,25,12,20,12,18,27,34,34,43,47,81,60,106,68,88,93,119,39,70,69,131,57,115,34,160,38,33,15,20,16,27,-15,0,0,0,0,0,0,0]} 1. c4 {[%emt 0:00:01]} e6 {[%emt 0:02:11]} 2. Nf3 {[%emt 0:00:04]} d5 {[%emt 0:00:22]} 3. d4 {[%emt 0:00:05]} Nf6 {[%emt 0:00:07]} 4. Nc3 {[%emt 0:00:04]} Be7 {[%emt 0:00:09]} 5. Bf4 {[%emt 0:00:05]} O-O {[%emt 0:00:11]} 6. e3 {[%emt 0:00:03]} Nbd7 {[%emt 0:00:09]} 7. Be2 {[%emt 0:00:02]} dxc4 {[%emt 0:06:36] D37: Queen's Gambit Declined: 5 Bf4.} 8. O-O {[%emt 0:00:08]} Nd5 {[%emt 0:01:22]} 9. Bxc4 {[%emt 0:00:11]} Nxf4 {[%emt 0:00:36]} 10. exf4 {[%emt 0:00:02]} c5 {[%emt 0:00:08]} 11. dxc5 {[%emt 0:03:37]} Nxc5 {[%emt 0:00:46]} 12. Qe2 {[%emt 0:14:19]} Bf6 {[%emt 0:04:25] [#]} 13. Rfd1 $146 {[%emt 0:26:33]} ({Predecessor:} 13. Rad1 Qc7 14. Ne5 a6 15. a4 Nd7 16. Nxf7 Rxf7 17. Bxe6 Nf8 18. Bxf7+ Qxf7 19. Ne4 {1-0 (45) Aronian,L (2813)-Markov,M (2304) Tromsoe 2013}) 13... Qa5 {[%emt 0:02:22]} 14. Ne5 {[%emt 0:00:55]} a6 {[%emt 0:05:32]} (14... Na4 $14 {might be stronger.}) 15. a3 {[%emt 0:22:08] aiming for b4.} Qc7 {[%emt 0:10:00] [#]} 16. Rac1 $1 {[%emt 0:02:09]} Qe7 {[%emt 0:07:12]} 17. Ne4 {[%emt 0:12:59]} (17. Qe3 $16) 17... Nxe4 {[%emt 0:02:44]} 18. Qxe4 {[%emt 0:00:05]} Rb8 {[%emt 0:01:23]} ({Black should play} 18... Rd8 $14) 19. g3 {[%emt 0:03:00]} (19. Be2 $16) 19... g6 {[%emt 0:00:24]} (19... Rd8 $14) 20. h4 {[%emt 0:00:27] White has more active pieces. The black rooks are badly placed.} (20. Bf1 $16) 20... Kg7 {[%emt 0:02:13]} (20... Rd8 $14) 21. h5 {[%emt 0:06:44]} (21. Be2 $16) 21... b5 $1 $14 {[%emt 0:05:53]} 22. Be2 $36 {[%emt 0:00:49][%cal Oh5h6][%mdl 2048] h6+! is the strong threat. White fights for an advantage.} Bb7 {[%emt 0:00:27]} 23. Qe3 {[%emt 0:00:14] [#] Strongly threatening Rd7.} Rfd8 {[%emt 0:04:56] Inhibits Rd7.} 24. Qa7 {[%emt 0:01:44]} Ra8 {[%emt 0:02:14] The position is equal.} 25. Qb6 {[%emt 0:01:16]} Rxd1+ {[%emt 0:10:37]} 26. Rxd1 {[%emt 0:00:02]} Bd5 {[%emt 0:00:14]} 27. Qe3 {[%emt 0:03:21]} Rd8 {[%emt 0:08:00] Weighted Error Value: White=0.27 (precise) /Black=0.25 (precise)} 1/2-1/2

[Event "Fall GM-C Norm Invitational 2022"]
[Site "Charlotte"]
[Date "2022.11.19"]
[Round "4"]
[White "Georgiev, Vladimir"]
[Black "Sethuraman, Sandeep"]
[Result "1/2-1/2"]
[ECO "D45"]
[WhiteElo "2406"]
[BlackElo "2371"]
[Annotator "TA"]
[PlyCount "35"]
[EventDate "2022.11.18"]
[EventType "tourn"]
[EventCountry "USA"]
[SourceTitle "playchess.com"]
[Source "ChessBase"]
[SourceQuality "1"]
[TimeControl "5400+30"]

{[%evp 14,20,13,14,37,35,44,53,94]} 1. d4 {[%emt 0:00:47]} d5 {[%emt 0:00:05]} 2. c4 {[%emt 0:01:15]} e6 {[%emt 0:00:06]} 3. Nc3 {[%emt 0:00:25]} c6 {[%emt 0:00:06][%cal Bc7c6,Bc6c5][%mdl 32]} 4. e3 {[%emt 0:03:55]} Nf6 {[%emt 0:00:32]} 5. Nf3 {[%emt 0:00:06]} a6 {[%emt 0:00:04]} 6. a4 {[%emt 0:02:47]} c5 {[%emt 0:05:07]} 7. Bd3 {[%emt 0:02:24] is the legacy move (7.cxd5).} dxc4 {[%emt 0:05:58]} 8. Bxc4 {[%emt 0:00:12]} b6 {[%emt 0:00:58] 8...Be7 gains popularity. D26: Queen's Gambit Accepted: 4 e3 e6 5 Bxc5 c5 sidelines.} 9. d5 {[%emt 0:03:40]} exd5 {[%emt 0:00:53]} 10. Nxd5 {[%emt 0:01:40]} Bb7 {[%emt 0:01:44] [#]} {Predecessor:} 11. Nc3 $146 Qxd1+ 12. Kxd1 Bd6 13. Ke2 Ke7 14. Ne1 Nbd7 15. Nf3 Ne5 16. Nxe5 Bxe5 17. f3 Rhd8 18. Bd2 {1-0 (38) Mullhaupt,P (2013)-Pecorini,J (1617) Geneve 2019} 1/2-1/2

[Event "Fall GM-C Norm Invitational 2022"]
[Site "Charlotte"]
[Date "2022.11.19"]
[Round "4"]
[White "Rodriguez Garcia, Victor"]
[Black "Gedajlovic, Max"]
[Result "1/2-1/2"]
[ECO "C70"]
[WhiteElo "2350"]
[BlackElo "2317"]
[Annotator "TA"]
[PlyCount "33"]
[EventDate "2022.11.18"]
[EventType "tourn"]
[EventCountry "USA"]
[SourceTitle "playchess.com"]
[Source "ChessBase"]
[SourceQuality "1"]
[TimeControl "5400+30"]

{[%evp 12,33,24,20,28,33,39,30,50,46,43,41,67,43,49,44,37,18,18,22,16,19,63,36]} 1. e4 {[%emt 0:00:03]} e5 {[%emt 0:00:36]} 2. Nf3 {[%emt 0:00:08]} Nc6 {[%emt 0:00:07]} 3. Bb5 {[%emt 0:00:11]} a6 {[%emt 0:00:26]} 4. Ba4 {[%emt 0:00:07]} Nge7 {[%emt 0:00:09]} 5. O-O {[%emt 0:01:20]} g6 {[%emt 0:00:47]} 6. c3 {[%emt 0:02:06]} Bg7 {[%emt 0:00:14]} 7. d4 {[%emt 0:01:05]} b5 {[%emt 0:00:21] C60: Ruy Lopez: Unusual Black 3rd moves and 3...g6.} 8. Bc2 {[%emt 0:01:59]} exd4 {[%emt 0:00:09] 8...exd4 scores better than 8...d6.} 9. cxd4 {[%emt 0:00:04]} d5 {[%emt 0:01:04] White has an edge.} 10. exd5 {[%emt 0:02:41]} Nb4 {[%emt 0:00:22]} 11. Bb3 {[%emt 0:03:35] [#] Re1 is the strong threat.} h6 $146 {[%emt 0:07:32]} ({Predecessor:} 11... Nbxd5 12. Nc3 O-O 13. Re1 h6 14. h3 Nxc3 15. bxc3 Bb7 16. Ne5 Bd5 17. Qg4 Bxb3 18. axb3 {½-½ (40) Caruana,F (2816)-Giri,A (2782) Leuven 2018}) 12. Bf4 {[%emt 0:07:41]} Nbxd5 {[%emt 0:02:47]} 13. Be5 {[%emt 0:02:49]} O-O {[%emt 0:00:52]} 14. Nc3 {[%emt 0:03:21]} Nxc3 {[%emt 0:03:20]} 15. bxc3 {[%emt 0:00:07]} Bb7 {[%emt 0:01:01]} 16. Re1 {[%emt 0:07:28]} Nd5 {[%emt 0:03:10]} 17. Qd2 {Weighted Error Value: White=0.05 (flawless) /Black=0.09 (flawless)} 1/2-1/2